Cogmind - Beta 10.2 @@@ ROGUE MODE // 2022.02.13 @ 14:55:00 Player: SirMrDrProf Result: Self-destructed Performance ------------- Evolutions (7) 3500 Regions Visited (30) 6000 Robots Destroyed (574) 2870 Value Destroyed (27462) 27462 Prototype IDs (70) 1400 Alien Tech Used (11) 2200 Bonus (13019) 13019 TOTAL SCORE: 56451 Bonus ------- Triggered High Security 500 High Alert Combat Kills 9760 Follower Combat Kills 586 Met Data Miner 300 Triggered Deep Caves Wall 500 Exposed GOLEM Chamber 500 Met Zhirov 300 Met Warlord at Base 500 MAIN.C Attacked Warlord 500 Warlord Defense Kill 1724 Met Sigix 2000 Friendly Fire -4151 Cogmind --------- Core Integrity 243/1300 Matter 284/300 Energy 1802/1900 System Corruption 8% Temperature Cool (0) Movement Treading (165) Ox1 Location -3/Section 7 Parts ------- > --- POWER (2) -------- Assembled Flux Generator > --- PROPULSION (3) --- Biometal Medium Treads Advanced Heavy Treads > --- UTILITY (13) ----- Large Storage Unit High-capacity Storage Unit Advanced Energy Well Assembled Biocell Array Spectral Analyzer Experimental Signal Interpreter Experimental Terrain Scan Processor Experimental Targeting Computer Advanced Weapon Cycler Centrium Medium Armor Plating Assembled Alloy Armor Energy Mantle Hacking Suite > --- WEAPON (3) ------- Assembled Focal Cannon Assembled Focal Cannon Compact Tesla Bomb Launcher > --- INVENTORY (18) --- Vortex Chain Reactor Advanced Medium Treads Improved Matter Compressor (300) Advanced Sensor Array Long-range Terrain Scanner System Restoration Module Dimensional Node Initializer Transdimensional Reconstructor High-powered Transdimensional Reconstructor Integrity Redistributor Integrity Redistributor Subatomic Replicator Terrabomb Multirail Heavy Proton Missile Launcher Sigix Terminator Peak State ------------ > --- POWER ------------ Assembled Flux Generator > --- PROPULSION ------- Advanced Medium Treads Advanced Heavy Treads > --- UTILITY ---------- Large Storage Unit High-capacity Storage Unit Assembled Biocell Array Experimental Signal Interpreter Experimental Targeting Computer Advanced Weapon Cycler Centrium Medium Armor Plating Assembled Alloy Armor Phase Armor GOLEM Unit Stasis Generator > --- WEAPON ----------- Heavy Proton Missile Launcher Sigix Broadsword > --- INVENTORY -------- Vortex Chain Reactor Biometal Medium Treads Improved Heavy Siege Treads Advanced Cooling System Advanced Energy Well Improved Matter Compressor Long-range Terrain Scanner Experimental Terrain Scan Processor Improved Particle Charger Energy Mantle System Restoration Module Transdimensional Reconstructor Subatomic Replicator Multirail Sigix Terminator [Rating: 198] Favorites ----------- Power Assembled Flux Generator Engine Reinforced Deuterium Engine Power Core Fission Core Reactor Assembled Flux Generator Propulsion Assembled Alloy Leg Treads Improved Medium Treads Leg Assembled Alloy Leg Utility Large Storage Unit Device GOLEM Unit Storage Large Storage Unit Processor Experimental Targeting Computer Hackware Hacking Suite Protection Assembled Alloy Armor Artifact Phase Armor Weapon Assembled Focal Cannon Energy Gun EM Pulse Gun Energy Cannon Assembled Focal Cannon Ballistic Gun Gauss Rifle Ballistic Cannon Hypercooled Linear Accelerator Launcher Heavy Proton Missile Launcher Special Weapon Improved Remote Datajack Slashing Weapon Sigix Broadsword Build | -11 -10 -10 -10 -9 -8 -8 -7 -7 -7 -7 -6 -6 -6 -6 -6 -6 -5 -5 -5 -5 -5 -4 -4 -4 -4 -4 -3 -3 -3 -3 ------- Run | Scr Mat Min Exi Min Mat Sto Fac Low Low Dat Pro Fac Low Low Zio Dee Pro Fac Upp Upp Zhi Pro Fac Upp Upp War Pro Res Qua Sec Slots Evolved 14 | . . . . . 4 . 2 . . . . 2 . . . . . 2 . . . . 2 . . . . 2 . . Power 1 | . . . . . . . . . . . . 1 . . . . . . . . . . . . . . . . . . Propulsion 1 | . . . . . . . . . . . . . . . . . . . . . . . 1 . . . . . . . Utility 11 | . . . . . 3 . 2 . . . . 1 . . . . . 2 . . . . 1 . . . . 2 . . Weapon 1 | . . . . . 1 . . . . . . . . . . . . . . . . . . . . . . . . . Parts Attached 359 | 6 . 1 1 8 27 22 9 2 5 . 14 27 10 4 15 15 3 11 3 2 12 1 20 1 4 8 2 9 93 24 Power 20 | 1 . . . 1 5 1 1 . 1 . 3 3 1 . 3 . . . . . . . . . . . . . . . Engine 17 | 1 . . . 1 5 1 1 . 1 . 1 3 1 . 2 . . . . . . . . . . . . . . . Core 2 | . . . . . . . . . . . 1 . . . 1 . . . . . . . . . . . . . . . Reactor 1 | . . . . . . . . . . . 1 . . . . . . . . . . . . . . . . . . . Propulsion 35 | 2 . . . . 5 2 . . . . 2 3 2 . . 1 . . . . 2 . 6 . . 1 . 1 8 . Treads 26 | 2 . . . . 5 2 . . . . 2 3 2 . . 1 . . . . . . 4 . . . . . 5 . Leg 9 | . . . . . . . . . . . . . . . . . . . . . 2 . 2 . . 1 . 1 3 . Wheel . | . . . . . . . . . . . . . . . . . . . . . . . . . . . . . . . Hover . | . . . . . . . . . . . . . . . . . . . . . . . . . . . . . . . Flight . | . . . . . . . . . . . . . . . . . . . . . . . . . . . . . . . Utility 175 | 1 . 1 1 1 7 4 6 2 1 . 4 10 3 . 7 7 1 5 2 . 10 . 7 1 1 2 1 6 61 23 Device 106 | . . . . . 4 2 2 2 . . 2 4 1 . 5 4 . 1 . . 7 . 6 1 1 2 1 3 45 13 Storage 25 | 1 . . 1 . 1 . . . . . . . . . . . . 1 2 . 3 . 1 . . . . 1 8 6 Processor 10 | . . 1 . . 1 1 1 . . . . . . . 1 . 1 . . . . . . . . . . . 3 1 Hackware 7 | . . . . . . . . . . . . 3 . . . . . 3 . . . . . . . . . . . 1 Protection 22 | . . . . 1 1 1 3 . 1 . 2 3 2 . 1 3 . . . . . . . . . . . 2 1 1 Artifact 5 | . . . . . . . . . . . . . . . . . . . . . . . . . . . . . 4 1 Weapon 129 | 2 . . . 6 10 15 2 . 3 . 5 11 4 4 5 7 2 6 1 2 . 1 7 . 3 5 1 2 24 1 Energy Gun 17 | 2 . . . 2 6 2 . . . . . 3 . . 1 . . . . . . . . . . . . . 1 . Energy Cannon 14 | . . . . . 1 3 1 . . . 2 . 1 . 1 2 . . . 1 . . . . . . . . 2 . Ballistic Gun 37 | . . . . 2 3 6 1 . 1 . 2 3 2 2 2 2 2 3 . . . . 1 . . . . . 5 . Ballistic Cannon 7 | . . . . . . . . . . . . 1 . . . . . 1 . . . . . . . . . . 5 . Launcher 51 | . . . . 2 . 4 . . 2 . 1 4 1 2 1 3 . 2 1 1 . 1 6 . 3 3 1 2 10 1 Special Weapon 2 | . . . . . . . . . . . . . . . . . . . . . . . . . . 2 . . . . Impact Weapon . | . . . . . . . . . . . . . . . . . . . . . . . . . . . . . . . Slashing Weapon 1 | . . . . . . . . . . . . . . . . . . . . . . . . . . . . . 1 . Piercing Weapon . | . . . . . . . . . . . . . . . . . . . . . . . . . . . . . . . Special Melee Weapon . | . . . . . . . . . . . . . . . . . . . . . . . . . . . . . . . Unidentified Prototypes 49 | . . . . . 5 6 . . . . 1 2 . . 2 2 . 2 . . 4 . 1 . . 2 . . 18 4 Parts Lost 39 | . . . . . 4 1 1 . 1 . 1 4 1 . 2 7 3 1 . . 3 . 4 . 1 . . 4 . 1 Power 2 | . . . . . . . . . 1 . . . . . 1 . . . . . . . . . . . . . . . Propulsion 3 | . . . . . 1 . . . . . . . . . . 1 . . . . . . 1 . . . . . . . Utility 19 | . . . . . 2 1 . . . . 1 2 1 . . 4 . . . . 2 . . . 1 . . 4 . 1 Weapon 15 | . . . . . 1 . 1 . . . . 2 . . 1 2 3 1 . . 1 . 3 . . . . . . . Highest Loss Streak 4 | . . . . . 2 1 1 . 1 . 1 1 1 . 1 4 2 1 . . 3 . 3 . 1 . . 3 . 1 Average Slot Usage (%) 89 | . 85 86 100 100 97 99 99 100 99 100 99 98 99 100 99 97 83 85 87 88 87 88 84 84 88 88 89 86 80 87 Engine 3 | . 14 14 14 14 9 9 6 7 6 7 2 11 13 13 10 13 . . . . . . . . . . . . . . Reactor 2 | . . . . . . . . . . . 3 . . . . . 5 5 5 5 5 5 5 5 5 5 5 4 4 4 Treads 8 | . 28 28 28 28 17 17 15 15 15 15 15 13 13 13 13 12 4 . . . . . 7 . . . . . 7 9 Leg 4 | . . . . . . . . . . . . . . . . . 8 10 10 11 10 11 4 15 15 15 15 14 2 . Device 14 | . . . . . 17 9 12 15 15 15 13 8 13 13 11 12 11 6 16 17 11 17 20 21 21 21 21 22 17 18 Storage 15 | . 14 14 14 14 16 18 15 15 15 15 15 13 13 13 13 13 20 17 15 17 22 17 15 15 15 15 15 14 14 14 Processor 10 | . . 1 14 5 . 4 12 15 15 15 15 13 13 13 14 13 13 12 11 11 11 11 10 10 10 10 10 9 10 15 Hackware 1 | . . . . . . . . . . . . 7 6 6 6 4 . 12 3 . . . . . . . . . . . Protection 5 | . . . . 8 7 13 12 7 7 7 7 8 5 6 6 4 . . 3 5 4 5 4 5 5 5 5 6 4 6 Energy Gun 2 | . 28 28 28 18 11 6 . . . . . 4 3 . . . . . . . . . . . . . . . . . Energy Cannon 6 | . . . . . 3 1 3 . . . 5 3 3 3 . 4 11 12 14 11 15 12 11 5 9 7 3 4 3 9 Ballistic Gun 5 | . . . . 7 11 18 19 23 20 23 13 9 7 8 13 7 2 3 . . . . . . . . . . . . Launcher 2 | . . . . 1 . . . . 2 . 3 2 4 6 4 7 2 . 2 4 1 3 1 5 5 7 11 8 2 4 Naked Turns . | . . . . . . . . . . . . . . . . . . . . . . . . . . . . . . . Heaviest Build 203 | 13 13 13 25 40 82 88 92 80 82 79 102 110 106 106 105 106 136 136 141 134 146 146 147 128 143 142 138 163 203 195 Greatest Support 105 | 40 40 40 40 40 40 40 40 40 40 40 48 60 60 60 60 60 60 60 70 70 70 60 100 80 80 85 85 90 105 105 Greatest Overweight (x) 44 | 1 . . . . 3 4 2 1 2 1 2 3 1 1 1 3 4 4 2 1 44 2 4 1 1 1 1 1 6 1 Average Overweight (x) 1 | . . . . . 1 1 1 1 1 1 1 1 1 1 1 1 3 2 1 1 2 2 1 1 1 1 1 1 1 1 Largest Inventory Capacity 18 | 6 6 6 10 10 18 18 18 18 18 18 18 18 18 18 18 18 18 18 18 18 18 18 18 18 18 18 18 18 18 18 Average Capacity 17 | 4 6 6 6 10 17 18 18 18 18 18 18 18 18 18 18 18 18 18 16 18 17 18 18 18 18 18 18 18 18 18 Most Carried 18 | 1 3 5 6 10 18 18 18 17 18 18 18 18 18 18 18 18 18 18 18 18 18 18 18 18 18 18 18 18 18 18 Average Carried 16 | . 2 3 5 6 14 17 16 16 17 18 17 16 17 17 17 15 16 17 15 17 16 17 17 17 17 17 17 17 17 17 Final Capacity 18 | 6 6 6 10 10 18 18 18 18 18 18 18 18 18 18 18 18 18 18 18 18 18 18 18 18 18 18 18 18 18 18 Final Carried 18 | 1 3 5 5 10 18 16 16 17 18 18 16 15 18 18 17 16 15 18 17 17 18 18 17 18 18 18 18 18 18 18 Class Distribution -------------------- 26% | Mutant 14% | Skirmisher 14% | Golem 9% | Scavenger-Mutant 6% | Tank 5% | Scavenger-Golem 4% | Scavenger-Tank 4% | Hacker-Gunner 3% | Scavenger-Skirmisher 3% | Gunner 3% | Hacker-Golem Dominant Class ---------------- Mutant | -10/Materials Mutant | -10/Mines Mutant | -10/Exiles Mutant | -9/Mines Tank | -8/Materials Tank | -8/Storage Skirmisher | -7/Factory Skirmisher | -7/Lower Caves Skirmisher | -7/Lower Caves Skirmisher | -7/Data Miner Mutant | -6/Proximity Caves Mutant | -6/Factory Scavenger-Skirmisher | -6/Lower Caves Scavenger-Skirmisher | -6/Lower Caves Scavenger-Mutant | -6/Zion Scavenger-Mutant | -6/Deep Caves Golem | -5/Proximity Caves Hacker-Gunner | -5/Factory Mutant | -5/Upper Caves Mutant | -5/Upper Caves Golem | -5/Zhirov Golem | -4/Proximity Caves Golem | -4/Factory Scavenger-Golem | -4/Upper Caves Scavenger-Golem | -4/Upper Caves Mutant | -4/Warlord Mutant | -3/Proximity Caves Golem | -3/Research Mutant | -3/Quarantine Mutant | -3/Section 7 Resources | -11 -10 -10 -10 -9 -8 -8 -7 -7 -7 -7 -6 -6 -6 -6 -6 -6 -5 -5 -5 -5 -5 -4 -4 -4 -4 -4 -3 -3 -3 -3 ----------- Run | Scr Mat Min Exi Min Mat Sto Fac Low Low Dat Pro Fac Low Low Zio Dee Pro Fac Upp Upp Zhi Pro Fac Upp Upp War Pro Res Qua Sec Matter Collected 11618 | 246 . 9 . 158 630 825 245 86 100 . 331 921 154 113 591 318 418 684 90 160 198 119 721 . 235 328 146 584 2650 558 Remotely . | . . . . . . . . . . . . . . . . . . . . . . . . . . . . . . . Salvage Created 28477 | . . . . 245 1651 2199 567 . 125 . 923 1734 163 533 957 1159 581 1207 137 178 104 526 3095 42 430 879 282 3542 3299 3919 Parts 1331 | . . . . 34 99 99 36 . 4 . 34 69 13 20 76 31 33 71 8 6 5 21 117 7 14 48 16 129 180 161 Haulers Intercepted 19 | . . . . . 4 5 1 . . . . 2 . . . . . 2 . . . . 2 . . . . . . 3 Recyclers Shooed 11 | . . . . . 1 . . . . . . 4 . . . . . 3 . . . . 3 . . . . . . . Parts Field Recycled . | . . . . . . . . . . . . . . . . . . . . . . . . . . . . . . . Retrieved Matter . | . . . . . . . . . . . . . . . . . . . . . . . . . . . . . . . Parts Self-Destructed 204 | . . . . . . . . . 3 . 31 . 2 . . . 33 . 7 2 . 17 . 6 11 89 3 . . . Prevented 65 | . . . . . . . . . . . . . 10 16 . . . . . 3 . . . . . 27 9 . . . Kills | -11 -10 -10 -10 -9 -8 -8 -7 -7 -7 -7 -6 -6 -6 -6 -6 -6 -5 -5 -5 -5 -5 -4 -4 -4 -4 -4 -3 -3 -3 -3 ------- Run | Scr Mat Min Exi Min Mat Sto Fac Low Low Dat Pro Fac Low Low Zio Dee Pro Fac Upp Upp Zhi Pro Fac Upp Upp War Pro Res Qua Sec Combat Hostiles Destroyed 468 | . . . . 12 27 33 7 . 3 . 23 29 1 9 5 49 13 24 6 6 . 9 42 4 14 17 5 43 44 43 Guns 94 | . . . . 9 22 24 4 . 3 . 8 11 . . 3 6 1 2 . . . . . . . . . . 1 . Cannons 102 | . . . . . 2 . 3 . . . 6 7 . . . . 12 14 1 2 . 4 19 . 2 5 . 4 8 13 AOE 200 | . . . . 3 1 6 . . . . 9 9 . 7 1 42 . 8 5 4 . 4 22 4 12 10 4 27 10 12 Classes Destroyed 31 | . . . . 3 9 3 1 . . . 2 . 1 . 3 4 . . . . . . . . . 2 . 1 2 . Worker 31 | . . . . 1 3 3 . . . . . 4 . . . . . 1 . . . . 10 . . . . 7 . 2 Builder 17 | . . . . . 2 . 1 . . . . 2 . . . . . . . . . . 8 . . . . 3 . 1 Tunneler 6 | . . . . 2 . . . . . . . 2 . . . . . . . . . . 1 . . . . 1 . . Hauler 19 | . . . . . 4 5 1 . . . . 2 . . . . . 2 . . . . 2 . . . . . . 3 Recycler 16 | . . . . . 2 3 . . . . . 1 . . . . . 1 . . . . 8 . . . . . . 1 Carrier 1 | . . . . . . . . . . . . . . . . . . . . . . . . . . . . 1 . . Minesweeper 1 | . . . . . . . . . . . . . 1 . . . . . . . . . . . . . . . . . Mechanic 2 | . . . . . . . . . . . 1 . . . . . . . . . . . . . . . . . . 1 Operator 6 | . . . . . 2 . 1 . . . . . . . . . . 2 . . . . 1 . . . . . . . Watcher 12 | . . . . . 1 1 2 . . . . 2 . . . . . . . . . . 4 . . . . . 1 1 Swarmer 100 | . . . . 12 8 4 . . 2 . 4 13 1 1 . . 5 14 5 2 . . . 4 3 7 4 11 . . Saboteur 3 | . . . . . . . . . . . . . . . . . . . . . . . . . . 1 . . . 2 Grunt 164 | . . . . . 12 23 4 . . . 11 7 . 1 . . 3 2 . 2 . 4 19 . 7 5 . 21 20 23 Brawler 12 | . . . . . 1 3 . . . . 3 2 . 1 . . 1 . . . . . . . 1 . . . . . Duelist 13 | . . . . . . 2 . . . . 3 1 . 3 . . . . . . . . . . 1 . . 1 . 2 Protector 6 | . . . . . . 1 . . . . . . . . . . . . . . . . . . . 1 . 3 1 . Sentry 35 | . . . . . 5 2 2 . 1 . 1 2 . 3 . . . 4 . 1 . 1 3 . 2 . . 3 2 3 Demolisher 2 | . . . . . . 2 . . . . . . . . . . . . . . . . . . . . . . . . Hunter 33 | . . . . . 1 . . . . . . 1 . . . . 4 . . . . 2 12 . . . . 2 3 8 Programmer 32 | . . . . . . . 1 . . . . 3 . . . . . 4 . . . 2 8 . . 2 . 3 4 5 Behemoth 4 | . . . . . . . . . . . 1 . 1 . . . . . . 1 . . . . . . 1 . . . Quarantine Guard 12 | . . . . . . . . . . . . . . . . . . . . . . . . . . . . . 12 . Enhanced Grunt 2 | . . . . . . . . . . . . . . . . . . . . . 2 . . . . . . . . . Striker 1 | . . . . . . . . . . . . . . . . . . . . . . . . . . 1 . . . . Alpha 7 1 | . . . . . . . . . . . . . . . . . . . . . . . . . . . . . 1 . Fortress 1 | . . . . . . . . . . . . . . . . . . . . . . . . . . . . . 1 . Zionite 31 | . . . . . . . . . . . . . . . 31 . . . . . . . . . . . . . . . Z-Light 3 | . . . . . . . . . . . . . . . . 3 . . . . . . . . . . . . . . Tinkerer 1 | . . . . . . . . . . . . . . . 1 . . . . . . . . . . . . . . . Assembler 2 | . . . . . . . . . . . . . . . . 2 . . . . . . . . . . . . . . Assembled 45 | . . . . . . . . . . . . . . . . 45 . . . . . . . . . . . . . . Golem 2 | . . . . . . . . . . . . . . . . 1 . . 1 . . . . . . . . . . . Thug 1 | . . . . . . . . . . . . . . . 1 . . . . . . . . . . . . . . . Butcher 1 | . . . . . . . . . . . . . . . 1 . . . . . . . . . . . . . . . Marauder 1 | . . . . . . . . . . . . . . . 1 . . . . . . . . . . . . . . . Mutant 1 | . . . . . . . . . . . . . . . 1 . . . . . . . . . . . . . . . Best Kill Streak 36 | . . . . 4 9 5 3 . 2 . 6 8 1 9 11 36 5 6 5 4 . 4 32 4 11 8 4 10 5 13 Combat Bots Only 35 | . . . . 4 4 5 3 . 2 . 6 6 1 9 1 35 5 5 5 4 . 4 17 4 11 8 4 8 5 9 Max Kills in Single Turn 23 | . . . . 3 2 5 1 . 1 . 3 3 1 5 2 23 1 4 3 3 1 1 4 4 4 2 2 3 2 3 Gunslinging 1 | . . . . . . . . . . . . 1 . . . . . . . . . . . . . . . . . . Exploded 23 | . . . . 3 1 2 . . . . 2 3 . 5 1 23 . 4 3 3 . 1 4 4 4 2 2 3 2 2 Melee . | . . . . . . . . . . . . . . . . . . . . . . . . . . . . . . . Uniques/NPCs Destroyed 1 | . . . . . . . . . . . . . . . 1 . . . . . . . . . . . . . . . Imprinter (-6/Zion) Combat | -11 -10 -10 -10 -9 -8 -8 -7 -7 -7 -7 -6 -6 -6 -6 -6 -6 -5 -5 -5 -5 -5 -4 -4 -4 -4 -4 -3 -3 -3 -3 -------- Run | Scr Mat Min Exi Min Mat Sto Fac Low Low Dat Pro Fac Low Low Zio Dee Pro Fac Upp Upp Zhi Pro Fac Upp Upp War Pro Res Qua Sec Damage Taken 19226 | . . . . 336 1212 994 488 . 120 . 821 1370 143 . 668 1186 1682 1257 . 275 1032 202 2305 . 522 165 136 820 2486 1006 Core 2364 | . . . . 98 130 66 54 . 5 . 32 124 . . 81 248 127 100 . 21 145 41 159 . 25 10 15 74 684 125 Absorbed by Shields 3786 | . . . . . . . . . . . . . . . . . . . . . . . . . . 157 129 582 2160 758 Redirected to Core 606 | . . . . . . . . . . . . . . . . . . . . . . . . . . . . . 570 36 Core Remaining (%) 70 | 100 . . . 60 . 64 . . . . 87 . . . . . 31 . . . . 69 . . . . 81 . . . Volleys Fired 1115 | . . . . 20 69 82 29 . 5 . 40 78 10 7 63 44 46 53 4 18 21 18 104 2 14 33 7 53 188 107 Largest 3 | . . . . 2 3 3 3 . 3 . 3 3 3 2 3 3 3 3 3 3 3 3 3 1 2 2 3 3 3 2 Hottest 325 | . . . . 83 163 146 122 . 81 . 190 164 121 72 168 161 83 89 80 125 75 80 105 46 65 80 120 120 325 50 Shots Fired 2289 | . . . . 38 206 220 82 . 15 . 82 191 22 13 165 80 91 141 8 32 63 35 198 2 15 47 18 91 279 155 Gun 942 | . . . . 37 176 203 65 . 15 . 45 142 9 . 144 35 12 40 . . . . 4 . . . . . 15 . Cannon 912 | . . . . . 30 3 17 . . . 24 28 6 . 14 10 79 95 6 25 63 31 160 1 7 13 . 15 164 121 Launcher 430 | . . . . 1 . 14 . . . . 13 21 7 13 7 35 . 6 2 7 . 4 34 1 8 29 18 76 100 34 Special 5 | . . . . . . . . . . . . . . . . . . . . . . . . . . 5 . . . . Kinetic 798 | . . . . 11 83 143 65 . 15 . 45 101 6 . 135 35 12 40 . . . . 4 . . . . . 103 . Thermal 911 | . . . . . 78 61 . . . . 24 53 3 . . 7 79 95 6 18 63 31 160 1 7 13 . 15 76 121 Explosive 80 | . . . . 1 . . . . . . 13 2 . 1 . 6 . 6 2 7 . 4 30 1 7 . . . . . Electromagnetic 495 | . . . . 26 45 16 17 . . . . 35 13 12 30 32 . . . 7 . . 4 . 1 29 18 76 100 34 Robot Hit Streak 60 | . . . . 8 18 19 22 . 11 . 26 16 8 5 31 22 21 21 5 9 31 33 43 . 12 17 17 17 60 59 Robot Miss Streak 6 | . . . . 4 6 4 2 . . . 2 3 1 1 2 2 4 4 1 1 2 . 3 . . 1 1 3 2 1 Penetration Max 1 | . . . . . 1 1 1 . . . 1 1 . . 1 1 . 1 . . . . 1 . . . . . . . Secondary Targets 7 | . . . . . 1 1 . . . . 1 1 . . 3 . . . . . . . . . . . . . . . Max Gunslinging Chain 1 | . . . . . 1 1 . . . . 1 1 . . 1 . . . . . . . . . . . . . . . Shots Hit Robots 1491 | . . . . 25 143 136 62 . 9 . 60 121 17 5 124 32 61 84 5 20 56 24 103 . 8 24 12 69 195 96 Core Hits 1134 | . . . . 17 81 78 22 . 5 . 56 78 4 21 49 97 20 40 10 10 19 16 134 4 30 36 12 105 113 77 Critical Hits 26 | . . . . . 3 3 . . . . 3 1 . . 7 1 1 2 . 1 . . 1 . . . . . 3 . Critical Kills 11 | . . . . . 2 3 . . . . 2 . . . 3 . . 1 . . . . . . . . . . . . Critical Parts Destroyed 12 | . . . . . 1 . . . . . 1 1 . . 4 1 1 1 . 1 . . . . . . . . 1 . Melee Attacks 5 | . . . . . . . . . . . . . . . . . . . . . . . . . . . . . 5 . Impact . | . . . . . . . . . . . . . . . . . . . . . . . . . . . . . . . Slashing 5 | . . . . . . . . . . . . . . . . . . . . . . . . . . . . . 5 . Piercing . | . . . . . . . . . . . . . . . . . . . . . . . . . . . . . . . Sneak Attacks . | . . . . . . . . . . . . . . . . . . . . . . . . . . . . . . . Combat Hostiles . | . . . . . . . . . . . . . . . . . . . . . . . . . . . . . . . Follow-up Attacks . | . . . . . . . . . . . . . . . . . . . . . . . . . . . . . . . Damage Inflicted 82007 | . . 2 . 471 2683 4291 1573 . 181 . 3241 4882 373 1061 3044 3626 2542 4319 832 1554 1853 2109 13896 329 2282 2379 555 6537 10052 7340 Guns 13638 | . . . . 258 2407 2510 1091 . 181 . 744 2026 135 . 2426 514 81 577 . . . . 50 . . . . . 638 . Cannons 28955 | . . . . . 184 20 435 . . . 795 1190 121 . 188 21 2461 2627 203 810 1853 1510 6005 . 396 524 . 734 5210 3668 Explosions 39221 | . . . . 195 92 1760 . . . . 1702 1652 117 1061 430 3091 . 1106 629 744 . 599 7825 329 1886 1855 555 5777 4204 3612 Melee . | . . . . . . . . . . . . . . . . . . . . . . . . . . . . . . . Ramming 193 | . . 2 . 18 . 1 47 . . . . 14 . . . . . 9 . . . . 16 . . . . 26 . 60 Kinetic 13641 | . . . . 64 1368 1843 1091 . 181 . 744 1346 61 . 2338 514 81 577 . . . . 50 . . . . . 3383 . Thermal 31144 | . . . . 33 649 1061 . . . . 795 2165 74 228 81 159 2461 2764 203 690 1853 1510 6715 . 396 1027 46 1357 3006 3871 Explosive 14859 | . . . . 162 . . . . . . 1702 52 . 29 . 1013 . 969 629 744 . 599 6779 329 1852 . . . . . Electromagnetic 22170 | . . . . 194 666 1386 435 . . . . 1305 238 804 625 1940 . . . 120 . . 336 . 34 1352 509 5154 3663 3409 Impact . | . . . . . . . . . . . . . . . . . . . . . . . . . . . . . . . Slashing . | . . . . . . . . . . . . . . . . . . . . . . . . . . . . . . . Piercing . | . . . . . . . . . . . . . . . . . . . . . . . . . . . . . . . Highest Corruption 15 | . . . . . . 3 . . . . . . . . 1 15 15 1 1 1 4 . 4 4 . 1 2 3 3 8 Average Corruption 3 | . . . . . . 2 . . . . . . . . 1 3 15 1 1 1 2 . 2 2 . 1 1 1 2 5 Corruption Purged 17 | . . . . . . . . . . . . . . . . . . . . . 4 . . 4 . . . 5 4 . Effects 227 | . . . . . . 21 . . . . . . . . 7 31 71 5 5 3 11 . 23 2 . . 5 7 13 23 Message Errors 55 | . . . . . . 7 . . . . . . . . 4 7 14 1 3 1 2 . 4 1 . . 3 3 3 2 Matter Fused 36 | . . . . . . 5 . . . . . . . . . 3 11 . . . 2 . 3 1 . . . 1 5 5 Heat Flow Errors 24 | . . . . . . 2 . . . . . . . . . 6 7 . . . 1 . 3 . . . . . . 5 Energy Discharges 26 | . . . . . . 1 . . . . . . . . . 5 7 2 1 2 3 . 3 . . . . . 1 1 Parts Rejected 1 | . . . . . . . . . . . . . . . . . 1 . . . . . . . . . . . . . Data Loss (minor) 25 | . . . . . . 2 . . . . . . . . 1 2 7 2 1 . 3 . 4 . . . . 2 . 1 Data Loss (major) 1 | . . . . . . . . . . . . . . . . . 1 . . . . . . . . . . . . . Misfires 4 | . . . . . . . . . . . . . . . . . 3 . . . . . . . . . . . . 1 Alerts 2 | . . . . . . . . . . . . . . . . . 2 . . . . . . . . . . . . . Misdirections 4 | . . . . . . . . . . . . . . . . 1 3 . . . . . . . . . . . . . Targeting Errors 39 | . . . . . . 4 . . . . . . . . 2 4 13 . . . . . 4 . . . 2 1 3 6 Weapon Failures 10 | . . . . . . . . . . . . . . . . 3 2 . . . . . 2 . . . . . 1 2 Overload Shots . | . . . . . . . . . . . . . . . . . . . . . . . . . . . . . . . Overflow Damage 3268 | . . . . . 10 28 50 . . . 47 259 . . . 79 183 120 6 115 49 135 1184 7 74 155 . 137 267 363 Projectiles 1781 | . . . . . . . 50 . . . 26 37 . . . 1 183 47 . 3 49 121 746 . 13 66 . 11 178 250 Explosions 1429 | . . . . . 10 28 . . . . 21 222 . . . 78 . 73 6 112 . 14 438 7 61 89 . 113 89 68 Melee 58 | . . . . . . . . . . . . . . . . . . . . . . . . . . . . 13 . 45 Knockbacks . | . . . . . . . . . . . . . . . . . . . . . . . . . . . . . . . Impact . | . . . . . . . . . . . . . . . . . . . . . . . . . . . . . . . Kinetic . | . . . . . . . . . . . . . . . . . . . . . . . . . . . . . . . Secondary . | . . . . . . . . . . . . . . . . . . . . . . . . . . . . . . . Self-Inflicted Damage 1682 | . . . . 74 227 42 . . . . 28 291 . . . 49 . 66 . . . . 78 . 12 46 71 104 317 277 Shots 77 | . . . . 2 4 3 . . . . 1 7 . . . 2 . 1 . . . . 2 . 1 2 3 10 23 16 Rammed 14 | . . 1 . 2 . 1 3 . . . . 2 . . . . . 2 . . . . 1 . . . . 1 . 1 Targets Rammed 15 | . . 1 . 2 . 1 3 . . . . 2 . . . . . 2 . . . . 1 . . . . 2 . 1 Kicked 1 | . . . . . . . . . . . . . . . . . . . . . . . . . . . . 1 . . Crushed . | . . . . . . . . . . . . . . . . . . . . . . . . . . . . . . . Highest Temperature 366 | . . . . 99 258 229 95 . 7 . 366 346 18 . 72 274 209 7 32 121 217 86 271 . 21 33 57 76 168 177 Average Temperature 53 | . . . . 36 25 65 41 . 7 . 146 67 9 . 16 64 76 4 20 50 80 26 78 . 15 12 31 23 34 86 Received Heat Transfer 2693 | . . . . . 378 297 99 . 18 . 276 201 12 . 27 110 252 99 . 51 54 27 264 . 108 16 12 118 164 110 Effects 7 | . . . . . . . . . . . 5 2 . . . . . . . . . . . . . . . . . . Shutdowns 1 | . . . . . . . . . . . 1 . . . . . . . . . . . . . . . . . . . Interference 6 | . . . . . . . . . . . 4 2 . . . . . . . . . . . . . . . . . . Siege Activations . | . . . . . . . . . . . . . . . . . . . . . . . . . . . . . . . Robots Corrupted 72 | . . . . . 2 3 . . . . . 3 1 2 1 1 . . . . . . 1 . . 2 1 13 24 18 Combat Hostiles 70 | . . . . . 2 3 . . . . . 2 1 2 1 1 . . . . . . 1 . . 2 1 12 24 18 Parts Fried 183 | . . . . . 3 7 3 . . . . 4 2 3 2 3 . . . 1 . . 4 . . 8 2 43 48 50 Impact Corruptions 4 | . . . . . . . 1 . . . . . . . . . . . . . . . . . . . . 1 . 2 Robots Melted 2 | . . . . . . . . . . . . . . . . . . . . . . 1 . . . . . . 1 . Combat Hostiles 2 | . . . . . . . . . . . . . . . . . . . . . . 1 . . . . . . 1 . Parts Melted 24 | . . . . . 1 . . . . . 1 4 . . . . 2 1 . . . 1 5 . . . . 2 5 2 Heat Transferred 19893 | . . . . 50 1201 1681 . . . . 625 2317 111 200 50 75 1400 1525 125 375 1148 650 2975 . 175 612 . 1175 1373 2050 Parts Sabotaged . | . . . . . . . . . . . . . . . . . . . . . . . . . . . . . . . Parts Stolen . | . . . . . . . . . . . . . . . . . . . . . . . . . . . . . . . Parts Stripped . | . . . . . . . . . . . . . . . . . . . . . . . . . . . . . . . Power Chain Reactions 52 | . . . . 1 2 5 . . . . . 4 . 2 3 2 . . . . . . . . . 6 1 12 9 5 Missiles Intercepted . | . . . . . . . . . . . . . . . . . . . . . . . . . . . . . . . Alert | -11 -10 -10 -10 -9 -8 -8 -7 -7 -7 -7 -6 -6 -6 -6 -6 -6 -5 -5 -5 -5 -5 -4 -4 -4 -4 -4 -3 -3 -3 -3 ------- Run | Scr Mat Min Exi Min Mat Sto Fac Low Low Dat Pro Fac Low Low Zio Dee Pro Fac Upp Upp Zhi Pro Fac Upp Upp War Pro Res Qua Sec Peak Influence 2235 | . 24 9 . 315 514 1145 452 . . . . 923 . . . . . 1105 . . . . 1527 . . . . 1136 1837 2235 Initial 1032 | . . 9 . . 122 109 452 . . . . 102 . . . . . 25 . . . . . . . . . 104 639 1032 Average 926 | . 8 6 . 113 274 609 332 . . . . 344 . . . . . 472 . . . . 572 . . . . 828 1524 1500 Maximum Alert Level 5 | . . . . 1 2 4 2 . . . . 3 . . . . . 4 . . . . 4 . . . . 4 5 5 Low Security (%) 18 | 100 100 100 . 78 31 30 . . . . . 36 . . . . . 26 . . . . 41 . . . . 4 . . Level 1 11 | . . . . 21 55 6 67 . . . . 32 . . . . . 8 . . . . 6 . . . . 1 . . Level 2 11 | . . . . . 13 13 32 . . . . 15 . . . . . 54 . . . . 1 . . . . 16 1 . Level 3 19 | . . . . . . 48 . . . . . 15 . . . . . 9 . . . . 36 . . . . 71 14 37 Level 4 12 | . . . . . . 1 . . . . . . . . . . . . . . . . 13 . . . . 6 23 26 Level 5 25 | . . . . . . . . . . . . . . . . . . . . . . . . . . . . . 60 35 High Security . | . . . . . . . . . . . . . . . . . . . . . . . . . . . . . . . Max Security . | . . . . . . . . . . . . . . . . . . . . . . . . . . . . . . . Squads Dispatched 75 | . . . . 1 2 9 5 . . . 1 10 . . . . . 5 . . . . 7 . 1 . . 8 8 18 Investigation 9 | . . . . 1 1 . . . . . . 2 . . . . . . . . . . . . . . . 2 1 2 Extermination 15 | . . . . . . . 1 . . . . 2 . . . . . 2 . . . . 4 . . . . 1 3 2 Reinforcement 19 | . . . . . 1 2 1 . . . . 2 . . . . . 1 . . . . 3 . . . . 3 . 6 Assault 22 | . . . . . . 5 . . . . 1 . . . . . . 2 . . . . . . 1 . . 2 3 8 Garrison 10 | . . . . . . 2 3 . . . . 4 . . . . . . . . . . . . . . . . 1 . Intercept . | . . . . . . . . . . . . . . . . . . . . . . . . . . . . . . . Construction Impeded 7 | . . . . . . . . . . . . . . . . . . 1 . . . . 2 . . . . 2 . 2 Haulers Reinforced 6 | . . . . . . . . . . . . 2 . . . . . . . . . . 1 . . . . 1 . 2 Stealth | -11 -10 -10 -10 -9 -8 -8 -7 -7 -7 -7 -6 -6 -6 -6 -6 -6 -5 -5 -5 -5 -5 -4 -4 -4 -4 -4 -3 -3 -3 -3 --------- Run | Scr Mat Min Exi Min Mat Sto Fac Low Low Dat Pro Fac Low Low Zio Dee Pro Fac Upp Upp Zhi Pro Fac Upp Upp War Pro Res Qua Sec Distress Signals 7 | . . . . . . . 1 . . . . 2 . . . . . . . . . . 1 . . . . 1 1 1 Communications Jammed . | . . . . . . . . . . . . . . . . . . . . . . . . . . . . . . . Distress Signals . | . . . . . . . . . . . . . . . . . . . . . . . . . . . . . . . Times Spotted 588 | . 1 . . 17 33 64 14 . 2 . 24 42 1 5 55 55 14 30 1 2 4 4 41 . 6 25 2 40 50 56 Peak Tracking Total 39 | . 1 . . 4 6 11 3 . 2 . 8 4 1 7 5 39 5 6 2 5 3 3 9 1 7 9 3 6 5 6 Tactical Retreats 52 | . . . . 2 3 2 . . . . 1 9 . . 2 11 . 3 . . . . . . 1 3 1 3 6 5 Traps | -11 -10 -10 -10 -9 -8 -8 -7 -7 -7 -7 -6 -6 -6 -6 -6 -6 -5 -5 -5 -5 -5 -4 -4 -4 -4 -4 -3 -3 -3 -3 ------- Run | Scr Mat Min Exi Min Mat Sto Fac Low Low Dat Pro Fac Low Low Zio Dee Pro Fac Upp Upp Zhi Pro Fac Upp Upp War Pro Res Qua Sec Traps Triggered 23 | . . . . . 1 6 1 . . . . 2 . . . . . . . . . . . . . . . 2 9 2 Indirectly 12 | . . . . . . 1 . . . . . 1 . . . . . . . . . . . . . . . 2 7 1 Trap Hack Attempts . | . . . . . . . . . . . . . . . . . . . . . . . . . . . . . . . Triggered . | . . . . . . . . . . . . . . . . . . . . . . . . . . . . . . . Disarmed . | . . . . . . . . . . . . . . . . . . . . . . . . . . . . . . . Reprogrammed . | . . . . . . . . . . . . . . . . . . . . . . . . . . . . . . . Reused 1 | . . . . . . . . . . . . . . . 1 . . . . . . . . . . . . . . . Traps Extracted . | . . . . . . . . . . . . . . . . . . . . . . . . . . . . . . . Installed 2 | . . . . . . . . . . . . . . . 2 . . . . . . . . . . . . . . . Triggered 10 | . . . . . . 1 . . . . 2 . . 2 . . . . . . . . . . . 5 . . . . Machines | -11 -10 -10 -10 -9 -8 -8 -7 -7 -7 -7 -6 -6 -6 -6 -6 -6 -5 -5 -5 -5 -5 -4 -4 -4 -4 -4 -3 -3 -3 -3 ---------- Run | Scr Mat Min Exi Min Mat Sto Fac Low Low Dat Pro Fac Low Low Zio Dee Pro Fac Upp Upp Zhi Pro Fac Upp Upp War Pro Res Qua Sec Machines Disabled 102 | . . . . . 4 9 1 . . . . 13 . 1 2 4 . 7 . . 1 . 13 1 2 1 . 4 21 18 Max in Single Turn 9 | . . . . . 2 1 1 . . . . 6 . 1 1 1 . 3 . . 1 . 9 1 2 1 . 1 2 4 Garrison Access 7 | . . . . . . 1 1 . . . . 1 . . . . . 2 . . . . . . . . . 1 1 . Machines Sabotaged . | . . . . . . . . . . . . . . . . . . . . . . . . . . . . . . . Garrisons Compromised . | . . . . . . . . . . . . . . . . . . . . . . . . . . . . . . . Overloaded Fab Kills . | . . . . . . . . . . . . . . . . . . . . . . . . . . . . . . . Fab Network Shutdowns 1 | . . . . . . . . . . . . . . . . . . 1 . . . . . . . . . . . . Hacking | -11 -10 -10 -10 -9 -8 -8 -7 -7 -7 -7 -6 -6 -6 -6 -6 -6 -5 -5 -5 -5 -5 -4 -4 -4 -4 -4 -3 -3 -3 -3 --------- Run | Scr Mat Min Exi Min Mat Sto Fac Low Low Dat Pro Fac Low Low Zio Dee Pro Fac Upp Upp Zhi Pro Fac Upp Upp War Pro Res Qua Sec Machines Accessed 87 | . 3 . 1 2 6 8 5 . 1 4 . 7 . . 1 . . 11 . . 5 . 10 1 . . . 2 12 8 Terminals 54 | . 3 . . 1 6 7 3 . . . . 5 . . . . . 6 . . . . 8 . . . . 1 10 4 Fabricators 6 | . . . . . . . . . . . . 1 . . . . . 3 . . . . 1 . . . . 1 . . Repair Stations 2 | . . . . . . . . . . . . . . . . . . . . . . . . . . . . . 1 1 Recycling Units . | . . . . . . . . . . . . . . . . . . . . . . . . . . . . . . . Scanalyzers 3 | . . . . . . . . . . . . . . . . . . . . . . . . . . . . . . 3 Garrison Access 8 | . . . . . . 1 2 . . . . 1 . . . . . 2 . . . . 1 . . . . . 1 . Total Hacks 190 | . 7 . 2 4 17 12 8 . 1 26 . 17 . . 4 . . 24 . . 18 . 17 1 . . . 5 13 14 Successful 113 | . 4 . 2 2 8 5 2 . 1 26 . 7 . . 4 . . 15 . . 18 . 6 1 . . . 3 6 3 Failed 76 | . 3 . . 1 9 7 6 . . . . 10 . . . . . 9 . . . . 11 . . . . 2 7 11 Catastrophic 28 | . 2 . . . 1 2 3 . . . . 3 . . . . . 2 . . . . 4 . . . . 1 7 3 Database Lockouts 1 | . . . . 1 . . . . . . . . . . . . . . . . . . . . . . . . . . Manual 34 | . 5 . . 3 8 4 . . . . . . . . 5 . . 3 . . . . 3 . . 1 . . 1 1 Terminals 94 | . 7 . . 3 17 10 5 . . . . 14 . . . . . 10 . . . . 10 . . . . 3 10 5 Fabricators 17 | . . . . . . . . . . . . 2 . . . . . 9 . . . . 4 . . . . 2 . . Repair Stations 4 | . . . . . . . . . . . . . . . . . . . . . . . . . . . . . 2 2 Recycling Units . | . . . . . . . . . . . . . . . . . . . . . . . . . . . . . . . Scanalyzers 7 | . . . . . . . . . . . . . . . . . . . . . . . . . . . . . . 7 Garrison Access 15 | . . . . . . 2 3 . . . . 1 . . . . . 5 . . . . 3 . . . . . 1 . Terminal Hacks 92 | . 3 . 2 2 7 4 1 . 1 26 . 5 . . 4 . . 7 . . 18 . 4 1 . . . 2 5 . Record 24 | . . . 2 . . . . . . 11 . . . . . . . . . . 6 . . 1 . . . 1 3 . Part Schematic 18 | . . . . 1 1 . . . . 6 . . . . 4 . . 2 . . 4 . . . . . . . . . Robot Schematic 6 | . . . . . . . . . . 6 . . . . . . . . . . . . . . . . . . . . Robot Analysis 4 | . . . . . . . . . . . . . . . . . . . . . 4 . . . . . . . . . Prototype ID Bank 7 | . . . . . . . . . . 3 . . . . . . . . . . 4 . . . . . . . . . Open Door 6 | . . . . 1 . 2 . . 1 . . . . . . . . . . . . . . . . . . . 2 . Branch Access Points 5 | . 1 . . . 1 . . . . . . 1 . . . . . 1 . . . . 1 . . . . . . . Machine Index 2 | . . . . . . . . . . . . . . . . . . 1 . . . . 1 . . . . . . . Alert Level 4 | . . . . . 1 . . . . . . . . . . . . 1 . . . . 1 . . . . 1 . . Unreport Threat 4 | . . . . . 2 1 . . . . . 1 . . . . . . . . . . . . . . . . . . Locate Traps 2 | . 1 . . . 1 . . . . . . . . . . . . . . . . . . . . . . . . . Hauler Manifests 5 | . . . . . 1 1 1 . . . . 1 . . . . . . . . . . 1 . . . . . . . Registered Prototypes 2 | . . . . . . . . . . . . 1 . . . . . 1 . . . . . . . . . . . . Zone Layout 3 | . 1 . . . . . . . . . . 1 . . . . . 1 . . . . . . . . . . . . Fabricator Hacks 9 | . . . . . . . . . . . . 1 . . . . . 6 . . . . 1 . . . . 1 . . Network Status 1 | . . . . . . . . . . . . . . . . . . . . . . . . . . . . 1 . . Load Schematic 6 | . . . . . . . . . . . . 1 . . . . . 4 . . . . 1 . . . . . . . Build 2 | . . . . . . . . . . . . . . . . . . 2 . . . . . . . . . . . . Repair Station Hacks 2 | . . . . . . . . . . . . . . . . . . . . . . . . . . . . . 1 1 Scan Component 2 | . . . . . . . . . . . . . . . . . . . . . . . . . . . . . 1 1 Recycling Unit Hacks . | . . . . . . . . . . . . . . . . . . . . . . . . . . . . . . . Scanalyzer 1 | . . . . . . . . . . . . . . . . . . . . . . . . . . . . . . 1 Insert Component 1 | . . . . . . . . . . . . . . . . . . . . . . . . . . . . . . 1 Garrison Access Hacks 5 | . . . . . . 1 1 . . . . 1 . . . . . 2 . . . . . . . . . . . . Seal Access 5 | . . . . . . 1 1 . . . . 1 . . . . . 2 . . . . . . . . . . . . Unauthorized Hacks 4 | . 1 . . . 1 . . . . . . . . . . . . . . . . . 1 . . . . . . 1 Terminals 4 | . 1 . . . 1 . . . . . . . . . . . . . . . . . 1 . . . . . . 1 Assimilate 1 | . . . . . . . . . . . . . . . . . . . . . . . . . . . . . . 1 Botnet 3 | . 1 . . . 1 . . . . . . . . . . . . . . . . . 1 . . . . . . . Fabricators . | . . . . . . . . . . . . . . . . . . . . . . . . . . . . . . . Repair Stations . | . . . . . . . . . . . . . . . . . . . . . . . . . . . . . . . Recycling Units . | . . . . . . . . . . . . . . . . . . . . . . . . . . . . . . . Scanalyzers . | . . . . . . . . . . . . . . . . . . . . . . . . . . . . . . . Garrison Access . | . . . . . . . . . . . . . . . . . . . . . . . . . . . . . . . Data Cores Recovered 2 | . . . . . . . . . . . . . . . . . . 2 . . . . . . . . . . . . Used 1 | . . . . . . . . . . . . . . . . . . 1 . . . . . . . . . . . . Hacking Detections 63 | . 3 . . 1 6 6 4 . . . . 6 . . . . . 9 . . . . 9 . . . . 2 9 8 Full Trace Events 4 | . 1 . . . . . . . . . . 1 . . . . . . . . . . . . . . . . . 2 Feedback Events 1 | . . . . . . . . . . . . . . . . . . . . . . . . . . . . . . 1 Corruption 1 | . . . . . . . . . . . . . . . . . . . . . . . . . . . . . . 1 Feedback Blocked . | . . . . . . . . . . . . . . . . . . . . . . . . . . . . . . . Robot Schematics Acquired 6 | . . . . . . . . . . 6 . . . . . . . . . . . . . . . . . . . . Robots Built . | . . . . . . . . . . . . . . . . . . . . . . . . . . . . . . . Matter . | . . . . . . . . . . . . . . . . . . . . . . . . . . . . . . . Time . | . . . . . . . . . . . . . . . . . . . . . . . . . . . . . . . Total Robot Build Rating . | . . . . . . . . . . . . . . . . . . . . . . . . . . . . . . . Part Schematics Acquired 18 | . . . . 1 1 . . . . 6 . . . . 4 . . 2 . . 4 . . . . . . . . . Parts Built 2 | . . . . . . . . . . . . . . . . . . 2 . . . . . . . . . . . . Matter 603 | . . . . . . . . . . . . . . . . . . 603 . . . . . . . . . . . . Time 321 | . . . . . . . . . . . . . . . . . . 321 . . . . . . . . . . . . Total Part Build Rating 11 | . . . . . . . . . . . . . . . . . . 11 . . . . . . . . . . . . Parts Repaired . | . . . . . . . . . . . . . . . . . . . . . . . . . . . . . . . Time . | . . . . . . . . . . . . . . . . . . . . . . . . . . . . . . . Parts Recycled . | . . . . . . . . . . . . . . . . . . . . . . . . . . . . . . . Recycled Matter . | . . . . . . . . . . . . . . . . . . . . . . . . . . . . . . . Retrieved Matter . | . . . . . . . . . . . . . . . . . . . . . . . . . . . . . . . Retrieved Components . | . . . . . . . . . . . . . . . . . . . . . . . . . . . . . . . Parts Scanalyzed . | . . . . . . . . . . . . . . . . . . . . . . . . . . . . . . . Part Schematics Acquired . | . . . . . . . . . . . . . . . . . . . . . . . . . . . . . . . Parts Damaged . | . . . . . . . . . . . . . . . . . . . . . . . . . . . . . . . Bothacking | -11 -10 -10 -10 -9 -8 -8 -7 -7 -7 -7 -6 -6 -6 -6 -6 -6 -5 -5 -5 -5 -5 -4 -4 -4 -4 -4 -3 -3 -3 -3 ------------ Run | Scr Mat Min Exi Min Mat Sto Fac Low Low Dat Pro Fac Low Low Zio Dee Pro Fac Upp Upp Zhi Pro Fac Upp Upp War Pro Res Qua Sec Used RIF Installer . | . . . . . . . . . . . . . . . . . . . . . . . . . . . . . . . Robots Hacked 2 | . . . . . . . . . . . . . . . . . . . . . . . . . . 2 . . . . Non-combat . | . . . . . . . . . . . . . . . . . . . . . . . . . . . . . . . Combat 2 | . . . . . . . . . . . . . . . . . . . . . . . . . . 2 . . . . Robot Hacks Applied 2 | . . . . . . . . . . . . . . . . . . . . . . . . . . 2 . . . . parse_system 2 | . . . . . . . . . . . . . . . . . . . . . . . . . . 2 . . . . Relay Couplers Released 6 | . . . . . . . . . . . . . . . . . . . . . . . . . . . . 2 4 . Machine Destruction 6 | . . . . . . . . . . . . . . . . . . . . . . . . . . . . 2 4 . Robots Rewired 5 | . . . . . . . . . . . 2 1 . . . . . . . . . . . . . 2 . . . . Allies Hacked . | . . . . . . . . . . . . . . . . . . . . . . . . . . . . . . . Hacks Repelled . | . . . . . . . . . . . . . . . . . . . . . . . . . . . . . . . Allies | -11 -10 -10 -10 -9 -8 -8 -7 -7 -7 -7 -6 -6 -6 -6 -6 -6 -5 -5 -5 -5 -5 -4 -4 -4 -4 -4 -3 -3 -3 -3 -------- Run | Scr Mat Min Exi Min Mat Sto Fac Low Low Dat Pro Fac Low Low Zio Dee Pro Fac Upp Upp Zhi Pro Fac Upp Upp War Pro Res Qua Sec Total Allies 22 | . . . . 2 . 12 . . . . 3 1 . . 2 . . . . . . . . . . 2 . . . . Largest Group 10 | . . . . 1 . 10 1 . . . 2 1 1 . 2 1 . . . . . . . . . 2 2 2 . . Highest-Rated Group 188 | . . . . 31 . 173 16 . . . 94 12 12 . 188 94 . . . . . . . . . 120 120 119 . . Highest-Rated Ally 94 | . . . . 31 . 31 16 . . . 94 12 12 . 94 94 . . . . . . . . . 60 60 60 . . Total Orders . | . . . . . . . . . . . . . . . . . . . . . . . . . . . . . . . Ally Attacks 202 | . . . . 3 . 77 9 . . . 11 3 2 . 94 3 . . . . . . . . . . . . . . Total Damage 4675 | . . . . 20 . 1051 67 . . . 268 12 28 . 3229 . . . . . . . . . . . . . . . Kills 44 | . . . . . . 16 1 . . . 1 . . . 26 . . . . . . . . . . . . . . . Allies Corrupted 1 | . . . . . . . . . . . . . . . . . . . . . . . . . . . . 1 . . Allies Melted . | . . . . . . . . . . . . . . . . . . . . . . . . . . . . . . . Intel | -11 -10 -10 -10 -9 -8 -8 -7 -7 -7 -7 -6 -6 -6 -6 -6 -6 -5 -5 -5 -5 -5 -4 -4 -4 -4 -4 -3 -3 -3 -3 ------- Run | Scr Mat Min Exi Min Mat Sto Fac Low Low Dat Pro Fac Low Low Zio Dee Pro Fac Upp Upp Zhi Pro Fac Upp Upp War Pro Res Qua Sec Robot Analysis Total 4 | . . . . . . . . . . . . . . . . . . . . . 4 . . . . . . . . . Derelict Logs Recovered 16 | . . 1 . 1 . . . 2 1 . 1 . 3 1 1 . 1 . . 1 . 1 . 1 1 . . . . . Drone Launches . | . . . . . . . . . . . . . . . . . . . . . . . . . . . . . . . Drone Recoveries . | . . . . . . . . . . . . . . . . . . . . . . . . . . . . . . . Exploration | -11 -10 -10 -10 -9 -8 -8 -7 -7 -7 -7 -6 -6 -6 -6 -6 -6 -5 -5 -5 -5 -5 -4 -4 -4 -4 -4 -3 -3 -3 -3 ------------- Run | Scr Mat Min Exi Min Mat Sto Fac Low Low Dat Pro Fac Low Low Zio Dee Pro Fac Upp Upp Zhi Pro Fac Upp Upp War Pro Res Qua Sec Turns Passed 41555 | 75 118 568 530 764 1233 1529 1248 955 1008 149 845 1550 824 913 2126 1564 1420 2555 1038 912 2307 857 2252 715 547 1005 371 963 9319 1295 Spaces Moved 18276 | 46 73 352 330 411 452 610 547 337 480 79 338 608 424 489 1016 697 390 974 372 495 488 395 894 436 317 566 226 521 4372 541 Core 16 | 10 . . . . . . . . . . . . . . . . . . . . 6 . . . . . . . . . Treads 12071 | 36 73 352 330 411 452 610 547 337 480 79 338 608 424 489 1016 697 2 . . . . . 656 . . . . . 3593 541 Legs 6189 | . . . . . . . . . . . . . . . . . 388 974 372 495 482 395 238 436 317 566 226 521 779 . Wheels . | . . . . . . . . . . . . . . . . . . . . . . . . . . . . . . . Hover . | . . . . . . . . . . . . . . . . . . . . . . . . . . . . . . . Flight . | . . . . . . . . . . . . . . . . . . . . . . . . . . . . . . . Fastest Speed 50 | 50 160 160 160 160 180 180 190 190 190 190 185 180 180 180 180 180 170 170 170 170 170 190 156 156 156 149 149 142 142 165 Average Speed 179 | 143 160 160 160 160 188 196 205 190 195 190 198 184 180 180 180 181 212 194 174 170 214 190 179 156 156 152 149 144 176 165 Slowest Speed 2250 | 160 160 160 160 160 220 250 210 190 210 190 210 220 180 180 180 220 230 230 190 170 2250 190 230 156 156 156 149 149 270 165 Overloaded Moves . | . . . . . . . . . . . . . . . . . . . . . . . . . . . . . . . Propulsion Burnouts . | . . . . . . . . . . . . . . . . . . . . . . . . . . . . . . . Robots Hopped . | . . . . . . . . . . . . . . . . . . . . . . . . . . . . . . . Cave-ins Triggered . | . . . . . . . . . . . . . . . . . . . . . . . . . . . . . . . Teleports 2 | . . . . . . . . . . . . . . . . . . . . . . . . . . . . . 2 . Exploration Rate (%) 53 | 4 19 72 75 81 36 89 13 63 67 69 46 21 60 65 83 74 61 26 54 56 68 63 21 62 52 71 48 14 98 33 Regions Visited 30 Branch Regions 23 Pre-discovered Areas 8 | . . . 1 . . . . . 1 1 . . . . 1 . . . . . 3 1 . . . . . . . . Known Exits Taken 27 | . 1 1 1 . 1 . 1 1 1 1 1 1 1 1 1 1 1 1 1 1 1 1 1 1 1 1 1 1 1 . Unknown Exits Taken 3 | 1 . . . 1 . 1 . . . . . . . . . . . . . . . . . . . . . . . . Scrap Searched 39 | . . 1 . 2 . . . 3 2 . 4 . 4 8 2 . 1 . 1 3 . . . . 5 . 3 . . . Spaces Dug 158 | . . . . . . . . . . . 16 27 . 7 . . 2 6 . 45 . . 17 . . . . 1 18 19 Terrain Destroyed 1365 | . . . . 13 40 46 . . . . 110 130 1 7 3 9 19 137 35 107 5 42 284 8 87 40 7 33 147 55 Melee . | . . . . . . . . . . . . . . . . . . . . . . . . . . . . . . . Projectile 204 | . . . . . . 4 . . . . 5 5 1 . 1 1 19 45 1 3 5 3 43 . . . . 1 38 29 AOE 1161 | . . . . 13 40 42 . . . . 105 125 . 7 2 8 . 92 34 104 . 39 241 8 87 40 7 32 109 26 Terrain Rammed . | . . . . . . . . . . . . . . . . . . . . . . . . . . . . . . . Walls Destroyed . | . . . . . . . . . . . . . . . . . . . . . . . . . . . . . . . Machines Disabled . | . . . . . . . . . . . . . . . . . . . . . . . . . . . . . . . Actions | -11 -10 -10 -10 -9 -8 -8 -7 -7 -7 -7 -6 -6 -6 -6 -6 -6 -5 -5 -5 -5 -5 -4 -4 -4 -4 -4 -3 -3 -3 -3 --------- Run | Scr Mat Min Exi Min Mat Sto Fac Low Low Dat Pro Fac Low Low Zio Dee Pro Fac Upp Upp Zhi Pro Fac Upp Upp War Pro Res Qua Sec Total 25314 | 52 74 356 332 477 676 799 613 651 541 78 432 877 465 508 1187 917 906 1524 759 535 1712 468 1374 469 355 657 242 631 5794 853 Wait 4971 | . . 1 . 21 83 51 16 312 48 . 11 123 7 3 72 154 457 453 357 19 1145 54 313 29 15 29 4 30 1008 156 Move 18246 | 45 72 351 329 410 451 609 546 336 479 78 337 607 423 488 1015 696 389 973 371 494 487 394 893 435 316 565 225 520 4371 541 Hop . | . . . . . . . . . . . . . . . . . . . . . . . . . . . . . . . Pick Up 209 | 1 2 2 1 11 25 13 6 1 3 . 3 17 7 3 8 3 1 11 14 1 16 1 10 1 1 5 2 6 28 6 Fast Attach 132 | 6 . 1 . . 6 5 2 . . . 2 7 3 . 4 4 . 5 2 . 9 . 10 . 1 3 . 1 50 11 Attach 57 | . . . . 1 8 1 3 . 1 . 2 5 . . 3 5 1 1 . . 1 . 6 . 2 1 . 2 12 2 Detach 26 | . . . . . 1 . . . . . 1 . . . 1 . 2 2 . . 1 . 7 . 1 . . 4 5 1 Swap 180 | . . . 1 7 14 16 4 2 4 . 10 15 7 4 8 6 2 5 1 2 3 1 4 1 1 4 2 6 36 14 Drop 317 | . . . 1 5 19 19 4 . 1 . 7 19 8 3 11 5 8 19 10 1 29 . 26 1 4 8 2 7 88 12 Fire 1115 | . . . . 20 69 82 29 . 5 . 40 78 10 7 63 44 46 53 4 18 21 18 104 2 14 33 7 53 188 107 Melee 5 | . . . . . . . . . . . . . . . . . . . . . . . . . . . . . 5 . Ram . | . . . . . . . . . . . . . . . . . . . . . . . . . . . . . . . Kick 4 | . . . . . . . . . . . . . . . . . . 2 . . . . . . . . . 2 . . Crush 11 | . . 1 . 2 . 1 3 . . . . 2 . . . . . . . . . . 1 . . . . . . 1 Escape Stasis 4 | . . . . . . 2 . . . . . . . . . . . . . . . . . . . . . . . 2 Rewire 35 | . . . . . . . . . . . 19 4 . . . . . . . . . . . . . 9 . . 3 . Trap 2 | . . . . . . . . . . . . . . . 2 . . . . . . . . . . . . . . . Miscellaneous . | . . . . . . . . . . . . . . . . . . . . . . . . . . . . . . . Route ------- -11/Scrapyard -10/Materials (discovered 2 exits: *Min x2) -10/Mines -10/Exiles (discovered 2 exits: *Min x2) -9/Mines -8/Materials (discovered 2 exits: *Fac / *Sto) -8/Storage -7/Factory -7/Lower Caves (discovered 2 exits: *Low / *Zio) -7/Lower Caves (discovered 2 exits: *Fac / *Dat) -7/Data Miner -6/Proximity Caves -6/Factory (discovered 3 exits: *Fac / *Low x2) -6/Lower Caves -6/Lower Caves -6/Zion (discovered 2 exits: *Dee / [*Pro]) -6/Deep Caves -5/Proximity Caves -5/Factory (discovered 4 exits: *Fac x2 / *Upp x2) -5/Upper Caves -5/Upper Caves (discovered 2 exits: *Fac / *Zhi) -5/Zhirov -4/Proximity Caves -4/Factory (discovered 6 exits: *Res / *Upp x2 / Ext x2 / Arm) -4/Upper Caves -4/Upper Caves -4/Warlord -3/Proximity Caves -3/Research (discovered 3 exits: *Res x2 / *Qua) -3/Quarantine (discovered 2 exits: *Res / *Sec) -3/Section 7 History --------- Turn | Location | Event 9 | -11/Scrapyard | Discovered new exit (range 16) 76 | -11/Scrapyard | Entered Materials 122 | -10/Materials | Identified exit to Mines 194 | -10/Materials | Entered Mines 305 | -10/Mines | Build established: Mutant 400 | -10/Mines | A weapon hastily lodged in a ceiling crevice suddenly fell to the ground 753 | -10/Mines | Deemed a non-threat by the Exiles lab entrance 754 | -10/Mines | Discovered new exit (range 5) 759 | -10/Mines | Identified exit to Exiles 762 | -10/Mines | Entered Exiles 763 | -10/Exiles | Identified exit to Mines 802 | -10/Exiles | Met 8R-AWN 828 | -10/Exiles | Met EX-HEX 892 | -10/Exiles | Met EX-DEC 900 | -10/Exiles | Learned location of Zion (-6) 937 | -10/Exiles | Met EX-BIN 1072 | -10/Exiles | Visited The Gauntlet 1292 | -10/Exiles | Entered Mines 1356 | -9/Mines | Central database locked down 1416 | -9/Mines | Learned Materials terminal intel 1565 | -9/Mines | Met a Derelict shopkeep closing up shop 2043 | -9/Mines | Discovered new exit (range 4) 2056 | -9/Mines | Entered Materials 2056 | -8/Materials | Evolved 4 slots: Utility x3, Weapon x1 2057 | -8/Materials | Loaded intel: 12 terminal locations 2285 | -8/Materials | Identified exit to Storage 2378 | -8/Materials | Build established: Tank 2770 | -8/Materials | Discovered new exit (range 16) 3289 | -8/Materials | Entered Storage 3719 | -8/Storage | Met a pair of Derelict thieves 3852 | -8/Storage | Garrison activated, responded to threat 4054 | -8/Storage | Found Prototype Processor 4054 | -8/Storage | Identified Exp. Targeting Computer 4063 | -8/Storage | Found Exp. Targeting Computer 4069 | -8/Storage | Found Exp. Targeting Computer 4089 | -8/Storage | First assault squad dispatched 4250 | -8/Storage | Assisted by bots powering up and referring to "LRC-V3" 4549 | -8/Storage | Build established: Commander-Gunner 4787 | -8/Storage | Discovered new exit (range 16) 4818 | -8/Storage | Entered Factory 4818 | -7/Factory | Accompanied by 1 ally 4818 | -7/Factory | Evolved 2 slots: Utility x2 5125 | -7/Factory | Build established: Tank 5507 | -7/Factory | Build established: Skirmisher 5822 | -7/Factory | Garrison activated, responded to threat 6006 | -7/Factory | Discovered new exit (range 15) 6055 | -7/Factory | Identified exit to Lower Caves 6066 | -7/Factory | Entered Lower Caves 6762 | -7/Lower Caves | Learned Factory terminal intel 6768 | -7/Lower Caves | Learned location of 1 exit from Proximity Caves 6996 | -7/Lower Caves | Discovered new exit (range 10) 6997 | -7/Lower Caves | A Derelict revealed a hidden shortcut to a safe place 7013 | -7/Lower Caves | Identified exit to Lower Caves 7015 | -7/Lower Caves | Identified exit to Zion 7021 | -7/Lower Caves | Entered another Lower Caves area 7046 | -7/Lower Caves | Discovered new exit (range 3) 7052 | -7/Lower Caves | Identified exit to Factory 7205 | -7/Lower Caves | Encountered a Warlord checkpoint 7617 | -7/Lower Caves | Attracted the attention of an 0b10 checkpoint 7820 | -7/Lower Caves | Discovered new exit (range 4) 7865 | -7/Lower Caves | Identified exit to Data Miner 8029 | -7/Lower Caves | Entered Data Miner 8029 | -7/Data Miner | Discovered new exit (range 6) 8037 | -7/Data Miner | Identified exit to Proximity Caves 8067 | -7/Data Miner | Met Data Miner 8102 | -7/Data Miner | Learned location of Section 7 (-3) 8102 | -7/Data Miner | Acquired the access code to Warlord's prototype stash 8138 | -7/Data Miner | Received God Mode back door access code from Data Miner 8178 | -7/Data Miner | Entered Proximity Caves 8437 | -6/Proximity Caves | Escorted by Enhanced Grunt 8482 | -6/Proximity Caves | Spotted B-75 Beast 8492 | -6/Proximity Caves | Destroyed B-75 Beast 8560 | -6/Proximity Caves | Attracted the attention of an 0b10 outpost 8599 | -6/Proximity Caves | Found Prototype Device 8599 | -6/Proximity Caves | Identified Exp. Thermal Shield 8890 | -6/Proximity Caves | Build established: Mutant 8933 | -6/Proximity Caves | Attracted the attention of an 0b10 checkpoint 9023 | -6/Proximity Caves | Entered Factory 9023 | -6/Factory | Evolved 2 slots: Power x1, Utility x1 9024 | -6/Factory | Identified exit to Lower Caves 9025 | -6/Factory | Loaded intel: 20 terminal locations 9397 | -6/Factory | Spotted B-75 Beast 9605 | -6/Factory | Garrison activated, responded to threat 9614 | -6/Factory | Build established: Hacker-Gunner 10084 | -6/Factory | Garrison activated, responded to threat 10466 | -6/Factory | Discovered new exit (range 12) 10573 | -6/Factory | Entered Lower Caves 10573 | -6/Lower Caves | Accompanied by 1 ally 10635 | -6/Lower Caves | Learned location of 1 exit from Factory 10760 | -6/Lower Caves | Learned Factory terminal intel 10955 | -6/Lower Caves | Spotted B-75 Beast 10977 | -6/Lower Caves | Destroyed B-75 Beast 11326 | -6/Lower Caves | Discovered new exit (range 10) 11344 | -6/Lower Caves | Identified exit to Lower Caves 11348 | -6/Lower Caves | Build established: Scavenger-Skirmisher 11397 | -6/Lower Caves | Entered another Lower Caves area 11965 | -6/Lower Caves | Attracted the attention of an 0b10 outpost 11990 | -6/Lower Caves | Destroyed 9 combat bots 12193 | -6/Lower Caves | Learned 8 Factory zone layouts 12244 | -6/Lower Caves | Build established: Scavenger-Mutant 12257 | -6/Lower Caves | Discovered exit to Zion (range 9) 12310 | -6/Lower Caves | Entered Zion 12368 | -6/Zion | Discovered new exit (range 16) 12782 | -6/Zion | Given A8's code to call for help 13079 | -6/Zion | Given the Hacking Drone Bay 13090 | -6/Zion | Found Prototype Device 13090 | -6/Zion | Identified Hacking Drone Bay 13189 | -6/Zion | Learned 4 Factory zone layouts 13254 | -6/Zion | Found CR-A16's Pointy Stick 13320 | -6/Zion | Received a hallucinogenic algorithm 13661 | -6/Zion | Attacked by Zionites 13835 | -6/Zion | Destroyed Imprinter 13849 | -6/Zion | Extracted access codes from Imprinter's data core 13900 | -6/Zion | Spotted UI-EOB(B) 13918 | -6/Zion | Destroyed UI-EOB(B) 14092 | -6/Zion | Enhanced Grunt warped into view, answering call for help 14104 | -6/Zion | Enhanced Grunt warped into view, answering call for help 14240 | -6/Zion | Build established: Scavenger-Gunner 14404 | -6/Zion | Opened final containment barrier to the Deep Caves 14427 | -6/Zion | Discovered new exit (range 5) 14431 | -6/Zion | Saw the warning signs outside the Deep Caves entrance 14433 | -6/Zion | Identified exit to Deep Caves 14436 | -6/Zion | Entered Deep Caves 14436 | -6/Deep Caves | Accompanied by 1 ally 15132 | -6/Deep Caves | Found Prototype Protection 15132 | -6/Deep Caves | Identified Zio. Weapon Casing 15157 | -6/Deep Caves | Build established: Scavenger-Mutant 15471 | -6/Deep Caves | Spotted as-23637 15698 | -6/Deep Caves | Exposed GOLEM chamber 15702 | -6/Deep Caves | Destroyed as-23637 15727 | -6/Deep Caves | Triggered Deep Caves wall 15730 | -6/Deep Caves | Core integrity fell below 50% 15756 | -6/Deep Caves | Spotted AS-56773 15760 | -6/Deep Caves | Destroyed AS-56773 15763 | -6/Deep Caves | Spotted AS-40886 15770 | -6/Deep Caves | Lost 4 parts (1n2u1w) 15781 | -6/Deep Caves | Destroyed 35 combat bots 15785 | -6/Deep Caves | System corruption reached 10% 15802 | -6/Deep Caves | Destroyed AS-40886 15838 | -6/Deep Caves | Found GOLEM Unit 15843 | -6/Deep Caves | Found GOLEM Unit 15858 | -6/Deep Caves | Found GOLEM Unit 15991 | -6/Deep Caves | Discovered new exit (range 6) 15998 | -6/Deep Caves | Identified exit to Proximity Caves 16000 | -6/Deep Caves | Entered Proximity Caves 16353 | -5/Proximity Caves | Build established: Golem 17063 | -5/Proximity Caves | Spotted B-75 Beast 17220 | -5/Proximity Caves | Discovered new exit (range 15) 17288 | -5/Proximity Caves | Learned Factory trap positions 17300 | -5/Proximity Caves | Identified exit to Factory 17420 | -5/Proximity Caves | Entered Factory 17420 | -5/Factory | Evolved 2 slots: Utility x2 17421 | -5/Factory | Identified exit to Upper Caves 17423 | -5/Factory | Loaded intel: 93 trap records 17424 | -5/Factory | Loaded intel: 20 terminal locations 18032 | -5/Factory | Build established: Hacker-Gunner 18455 | -5/Factory | Discovered new exit (range 14) 18478 | -5/Factory | Identified exit to Factory 18620 | -5/Factory | First assault squad dispatched 18647 | -5/Factory | Incoming assault squad redirected 18948 | -5/Factory | Discovered exit to Factory (range 13) 19171 | -5/Factory | Spotted B-75 Beast 19469 | -5/Factory | Build established: Hacker-Golem 19538 | -5/Factory | Incoming assault squad redirected 19560 | -5/Factory | Fabricated Exp. Sensor Array (x1) 19715 | -5/Factory | Local fabrication network quarantined 19735 | -5/Factory | Fabricated Mni. Smartbomb Launcher? 19975 | -5/Factory | Entered Upper Caves 20354 | -5/Upper Caves | Found GOLEM Unit 20688 | -5/Upper Caves | Encountered a Warlord checkpoint 20812 | -5/Upper Caves | Discovered new exit (range 5) 20817 | -5/Upper Caves | Identified exit to Upper Caves 20826 | -5/Upper Caves | Build established: Mutant 21013 | -5/Upper Caves | Entered another Upper Caves area 21017 | -5/Upper Caves | Discovered exit to Factory (range 11) 21446 | -5/Upper Caves | Spotted B-75 Beast 21511 | -5/Upper Caves | Destroyed B-75 Beast 21642 | -5/Upper Caves | Attracted the attention of an 0b10 checkpoint 21751 | -5/Upper Caves | Encountered a Warlord checkpoint 21796 | -5/Upper Caves | Learned Factory terminal intel 21801 | -5/Upper Caves | Discovered new exit (range 3) 21806 | -5/Upper Caves | Identified exit to Zhirov 21925 | -5/Upper Caves | Entered Zhirov 21925 | -5/Zhirov | Discovered new exit (range 3) 21956 | -5/Zhirov | Met Zhirov 22004 | -5/Zhirov | Learned location of Quarantine (-3) 22004 | -5/Zhirov | Learned location of Testing (-2) 22004 | -5/Zhirov | Learned location of Command (-1) 22021 | -5/Zhirov | Zhirov requested help retrieving the SGEMP Prototype 22051 | -5/Zhirov | Found Alien Artifact 22073 | -5/Zhirov | Found Alien Artifact 22073 | -5/Zhirov | Identified Integrated Reactor 22073 | -5/Zhirov | Installed Integrated Reactor, increased core energy generation (+10) 22439 | -5/Zhirov | Build established: Golem 22507 | -5/Zhirov | Attacked by Zhirov 22519 | -5/Zhirov | Zhirov warped through subspace 22529 | -5/Zhirov | Zhirov detonated his lab 22529 | -5/Zhirov | Cloak Generator disabled 22549 | -5/Zhirov | Identified exit to Proximity Caves 22560 | -5/Zhirov | Lost 3 parts (2u1w) 24232 | -5/Zhirov | Entered Proximity Caves 24345 | -4/Proximity Caves | Attracted the attention of an 0b10 checkpoint 25006 | -4/Proximity Caves | Discovered exit to Factory (range 8) 25089 | -4/Proximity Caves | Entered Factory 25089 | -4/Factory | Evolved 2 slots: Propulsion x1, Utility x1 25090 | -4/Factory | Identified exit to Extension 25091 | -4/Factory | Loaded intel: 21 terminal locations 25462 | -4/Factory | Discovered new exit (range 6) 25471 | -4/Factory | Identified exit to Upper Caves 25537 | -4/Factory | Identified exit to Armory 25582 | -4/Factory | Build established: Gunner 26006 | -4/Factory | Discovered new exit (range 12) 26048 | -4/Factory | Identified exit to Research 26176 | -4/Factory | Build established: Golem 26277 | -4/Factory | Destroyed 17 combat bots 26284 | -4/Factory | Lost 3 parts (1n2w) 27341 | -4/Factory | Entered Upper Caves 27634 | -4/Upper Caves | Build established: Scavenger-Golem 27956 | -4/Upper Caves | Learned location of 1 exit from Research 27964 | -4/Upper Caves | Found Alien Artifact 27987 | -4/Upper Caves | Discovered new exit (range 14) 28006 | -4/Upper Caves | Identified exit to Upper Caves 28056 | -4/Upper Caves | Entered another Upper Caves area 28058 | -4/Upper Caves | Attracted the attention of an 0b10 outpost 28098 | -4/Upper Caves | Destroyed 11 combat bots 28205 | -4/Upper Caves | Learned Research security intel 28557 | -4/Upper Caves | Attracted the attention of an 0b10 checkpoint 28563 | -4/Upper Caves | Discovered new exit (range 10) 28576 | -4/Upper Caves | Identified exit to Warlord 28603 | -4/Upper Caves | Entered Warlord 29064 | -4/Warlord | Met Warlord 29084 | -4/Warlord | Opened Warlord's prototype stash 29089 | -4/Warlord | Warlord's base attacked by MAIN.C 29091 | -4/Warlord | Found Prototype Reactor 29095 | -4/Warlord | Found Prototype Device 29095 | -4/Warlord | Identified Exp. Phase Shifter 29439 | -4/Warlord | Warlord forces counterattacked 29449 | -4/Warlord | P-80 Master assimilated allied 92-0SC(g) 29473 | -4/Warlord | Spotted Striker 29479 | -4/Warlord | Destroyed Striker 29514 | -4/Warlord | Destroyed 8 combat bots 29558 | -4/Warlord | Spotted Executioner 29595 | -4/Warlord | Discovered new exit (range 9) 29606 | -4/Warlord | Identified exit to Proximity Caves 29608 | -4/Warlord | Entered Proximity Caves 29608 | -3/Proximity Caves | Accompanied by 2 allies 29667 | -3/Proximity Caves | Build established: Mutant 29845 | -3/Proximity Caves | Spotted B-86 Titan 29893 | -3/Proximity Caves | Destroyed B-86 Titan 29919 | -3/Proximity Caves | Found Hvy. Reflective Plating 29960 | -3/Proximity Caves | Discovered exit to Research (range 5) 29979 | -3/Proximity Caves | Entered Research 29979 | -3/Research | Accompanied by 2 allies 29979 | -3/Research | Evolved 2 slots: Utility x2 29980 | -3/Research | Identified exit to Research 30039 | -3/Research | Incoming assault squad redirected 30229 | -3/Research | First assault squad dispatched 30268 | -3/Research | Spotted B-86 Titan 30375 | -3/Research | Destroyed 7 combat bots 30410 | -3/Research | Lost 3 parts (3u) 30500 | -3/Research | Incoming investigation squad redirected 30641 | -3/Research | Build established: Golem 30645 | -3/Research | Discovered exit to Research (range 12) 30903 | -3/Research | Destroyed 8 combat bots 30918 | -3/Research | Discovered new exit (range 11) 30934 | -3/Research | Identified exit to Quarantine 30942 | -3/Research | Entered Quarantine 31048 | -3/Quarantine | Found Alien Artifact 31048 | -3/Quarantine | Identified Phase Armor 31069 | -3/Quarantine | Build established: Mutant 31147 | -3/Quarantine | Found Exp. Terrain Scan Processor 31181 | -3/Quarantine | Found Unknown Device 31181 | -3/Quarantine | Identified Launcher Loader 31303 | -3/Quarantine | Met incapacitated Sigix Warrior 31303 | -3/Quarantine | Lockdown squad dispatched 31310 | -3/Quarantine | Acquired the access code to the Sigix quarantine chamber 31496 | -3/Quarantine | Build established: Golem 31692 | -3/Quarantine | First assault squad dispatched 31700 | -3/Quarantine | Found Alien Artifact 31700 | -3/Quarantine | Identified Subatomic Replicator 31950 | -3/Quarantine | Found Alien Energy Cannon 31950 | -3/Quarantine | Identified Core Cannon 31967 | -3/Quarantine | Incoming assault squad redirected 32129 | -3/Quarantine | Spotted Alpha 7 32178 | -3/Quarantine | Destroyed Alpha 7 32185 | -3/Quarantine | Found Prototype Ballistic Gun 32185 | -3/Quarantine | Identified Multirail 32254 | -3/Quarantine | Found Alien Launcher 32258 | -3/Quarantine | Identified Sigix Terminator 32392 | -3/Quarantine | Found Alien Artifact 32393 | -3/Quarantine | Identified Transdimensional Reconstructor (x2) 32393 | -3/Quarantine | Warped through subspace 32430 | -3/Quarantine | Cryocooling Duct disabled 32445 | -3/Quarantine | Ambient heat levels rising (+20) 32445 | -3/Quarantine | Non-combat units ordered to evacuate 32445 | -3/Quarantine | Garrison activated, responded to threat 32461 | -3/Quarantine | Cryocooling Duct disabled 32476 | -3/Quarantine | Ambient heat levels rising (+20) 32476 | -3/Quarantine | Combat units ordered to evacuate 32576 | -3/Quarantine | Quarantine Guard activated 32591 | -3/Quarantine | Build established: Mutant 32643 | -3/Quarantine | Spotted Quarantine Guard 32652 | -3/Quarantine | Destroyed Quarantine Guard 32751 | -3/Quarantine | Found Prototype Processor 32751 | -3/Quarantine | Identified Exp. Signal Interpreter 32757 | -3/Quarantine | Found Exp. Signal Interpreter 32793 | -3/Quarantine | Spotted Quarantine Guard 32799 | -3/Quarantine | Destroyed Quarantine Guard 33377 | -3/Quarantine | Spotted Quarantine Guard 33382 | -3/Quarantine | Destroyed Quarantine Guard 33451 | -3/Quarantine | Spotted Quarantine Guard 33455 | -3/Quarantine | Destroyed Quarantine Guard 33685 | -3/Quarantine | Build established: Scavenger-Mutant 33697 | -3/Quarantine | Found Alien Slashing Weapon 33697 | -3/Quarantine | Identified Sigix Broadsword 33703 | -3/Quarantine | Identified Dimensional Node Initializer 33703 | -3/Quarantine | Initialized slip node 33831 | -3/Quarantine | Found Alien Artifact 33831 | -3/Quarantine | Identified Stasis Generator 33888 | -3/Quarantine | Destroyed Quarantine Guard 33923 | -3/Quarantine | Spotted Quarantine Guard 33933 | -3/Quarantine | Spotted Quarantine Guard 33944 | -3/Quarantine | Destroyed Quarantine Guard 33957 | -3/Quarantine | Destroyed Quarantine Guard 34001 | -3/Quarantine | Build established: Mutant 34123 | -3/Quarantine | Found Alien Artifact 34126 | -3/Quarantine | Found Transdimensional Reconstructor 34128 | -3/Quarantine | Found Alien Artifact 34182 | -3/Quarantine | Destroyed Quarantine Guard 34294 | -3/Quarantine | Incoming investigation squad redirected 34388 | -3/Quarantine | Discovered exit to Research (range 10) 34388 | -3/Quarantine | Spotted Quarantine Guard 34402 | -3/Quarantine | Destroyed Quarantine Guard 35271 | -3/Quarantine | Spotted Quarantine Guard 35336 | -3/Quarantine | Spotted Quarantine Guard 35392 | -3/Quarantine | Destroyed Quarantine Guard 35613 | -3/Quarantine | Destroyed Quarantine Guard 35713 | -3/Quarantine | Found Alien Artifact 35713 | -3/Quarantine | Identified Terrabomb 35713 | -3/Quarantine | Used Terrabomb 35998 | -3/Quarantine | Found Dimensional Node Initializer 36335 | -3/Quarantine | Spotted Fortress 36356 | -3/Quarantine | Core integrity fell below 50% 36375 | -3/Quarantine | Warped through subspace to slip node 36396 | -3/Quarantine | Build established: Scavenger-Tank 37363 | -3/Quarantine | Found Terrabomb 37577 | -3/Quarantine | Destroyed Fortress 38149 | -3/Quarantine | Found Dimensional Node Initializer 38152 | -3/Quarantine | Found Dimensional Node Initializer 38382 | -3/Quarantine | Build established: Skirmisher 38701 | -3/Quarantine | Discovered new exit (range 24) 39587 | -3/Quarantine | Spotted Quarantine Guard 40192 | -3/Quarantine | Destroyed Quarantine Guard 40230 | -3/Quarantine | Build established: Mutant 40259 | -3/Quarantine | Identified exit to Section 7 40261 | -3/Quarantine | Entered Section 7 40311 | -3/Section 7 | Found Prototype Launcher 40311 | -3/Section 7 | Identified Com. Tesla Bomb Launcher 40376 | -3/Section 7 | Found Prototype Device 40376 | -3/Section 7 | Identified Exp. Thermal Defense Suite 40511 | -3/Section 7 | First assault squad dispatched 40527 | -3/Section 7 | Incoming assault squad redirected 40532 | -3/Section 7 | Incoming assault squad redirected 40631 | -3/Section 7 | Found Alien Artifact 40631 | -3/Section 7 | Identified Integrated Dissipator 40631 | -3/Section 7 | Installed Integrated Dissipator, increased core heat dissipation (+20) 40683 | -3/Section 7 | Found Alien Artifact 40932 | -3/Section 7 | Destroyed 8 combat bots 40949 | -3/Section 7 | Found Integrated Reactor 40949 | -3/Section 7 | Installed Integrated Reactor, increased core energy generation (+10) 41053 | -3/Section 7 | Incoming assault squad redirected 41095 | -3/Section 7 | Found Prototype Processor 41095 | -3/Section 7 | Identified Spectral Analyzer 41114 | -3/Section 7 | Destroyed 9 combat bots 41205 | -3/Section 7 | Found Alien Artifact 41281 | -3/Section 7 | Incoming assault squad redirected 41281 | -3/Section 7 | Found Integrated Reactor 41281 | -3/Section 7 | Installed Integrated Reactor, increased core energy generation (+10) 41338 | -3/Section 7 | Identified Hpw. Transdimensional Reconstructor 41497 | -3/Section 7 | Core integrity fell below 20% 41506 | -3/Section 7 | Incoming investigation squad redirected 41529 | -3/Section 7 | Incoming assault squad redirected 41537 | -3/Section 7 | Incoming assault squad redirected 41554 | -3/Section 7 | High security lockdown imminent 41556 | -3/Section 7 | Self-destructed Last Messages --------------- 41506_ ALERT: Higher priority target reported, redirecting investigation. 41506_ Penetrated by Slug. 41506_ Slug penetrates Earth. 41510_ Unknown Energy Gun melted. 41510_ Y-72 Warden destroyed. 41510_ System corrupted: Asb. Focal Cannon targeting data glitched. 41511_ ALERT: Significant disruption in Zone 1Y, assault forces dispatched. 41514_ Acquired 37 matter. 41525_ U-05 Engineer builds a Wall. 41529_ 1%9VFDHWL>KOJRF YW9# 41529_ ALERT: Higher priority target reported, redirecting assault. 41531_ U-05 Engineer builds a Wall. 41537_ ALERT: Higher priority target reported, redirecting assault. 41553_ Door malfunctions. 41554_ G-67 Veteran destroyed. 41554_ ALERT: High security lockdown imminent, T-100. 41554_ Cryopreservation Unit disabled. 41555_ G-67 Veteran system terminally corrupted. 41555_ Adv. Heat Sink fried. Map ----- +----------------------------------------------------+ | ## "" # T" # """" + """ """ ## "" "" # | | T" + "" # """ # ^""" T" ## """"" # | | ## # "" # # """ ## # | | ## # # # """ "" ############ | | ### ######## ! # """ " | | # ###########+###### """ " | | + ########### ###### " | | " # ######= | | " + ################ # ################### | | " ##+######### ! # ################### | | # ## # ###################### | | ### # =[= # #####""""""########### | | ### ""T"" ## !%! # #####""S"""########### | | ### """"" ## """ # ##### """##### | | ############## """S"" # # ### "" | | # ##### """""" # # ! ### """ | | #""" = ##### # #! """"""" !### " | | #""" ########+###### #] """"""" ### "" | | #""" [ # *# ]""""""" ### "" | | #"" # #]= # # | | #""" # =! += """ ### | | #""" + =%* # """ ######### | | #""" # ####o######/### """ ######### | | # # # | =![## ######### | | ########## # =## ]######### | | # "" @ ## ######### | | # """ ! ###"" """############# | | # """ ""###########???######### | | # ""########???????######## | | ###+###### # """ ""#######???????????##### | | # # """ T##########?????????#### | | # # """ ""######?#??????????????# | | """ """ # + ""#####?#???????????????? | | " " " " # # ""##??##?#??????????????? | | """ """ # # ####??###?????????????? | | + ### ###############?#??????????????? | | ###########/################?###??#??????????????? | | # " !%= *% # #######?##??##??????????? | | ### !"""S""" ############??#??????????????? | | ### """ """ """ """ ############??#?#????????????? | | ### " " """ ##########?#??###????????????? | | ### """ """ #####??######?##?????????????? | | ### #########??#?#???????????????? | | ### [ #######??####???????????????? | | ##########################?######?##?????????????? | | | | | | | | | | | +----------------------------------------------------+ Best States ------------- Heat Dissipation 77 Energy Generation 75 Energy Capacity 1900 Matter Stores 600 Matter Capacity 600 Sight Range 24 Robot Scan Range 30 Terrain Scan Range 24 Terrain Scan Density 1010 Power Amplification 20 Additional Mass Support 10 Armor Coverage 700 Resistance: KI 20 Resistance: TH 30 Resistance: EX 15 Resistance: EM 15 Resistance: I 15 Resistance: S 15 Resistance: P 15 Weapon Cycling 30 Phase Shifting 20 Evasion (%) 60 Targeting Accuracy 24 Core Analysis 8 Recoil Reduction 3 Particle Charging 30 Offensive Hacking 21 Defensive Hacking 11 Item Schematics ----------------- Plasma Cutter | -9/Mines | Hacked Adv. Treads | -8/Materials | Hacked Combat Drone Bay | -7/Data Miner | Free Lgt. Regenerative Plating | -7/Data Miner | Free Exp. Flexi-carbon Leg | -7/Data Miner | Free Exp. Cesium-ion Thruster | -7/Data Miner | Free Exp. Targeting Computer | -7/Data Miner | Free Mni. Smartbomb Launcher | -7/Data Miner | Free Beamcaster | -6/Zion | Free Hvy. Beamcaster | -6/Zion | Free Riot Gun | -6/Zion | Free Plasma Flamer | -6/Zion | Free Exp. Sensor Array | -5/Factory | Hacked Adv. Cooling System | -5/Factory | Hacked Assault Drone Bay | -5/Zhirov | Free Exp. Heat Sink | -5/Zhirov | Free Exp. Optical Array | -5/Zhirov | Free Imp. Arc Thrower | -5/Zhirov | Free Robot Schematics ------------------ S-27 Virus | -7/Data Miner | Free G-50 Soldier | -7/Data Miner | Free G-67 Veteran | -7/Data Miner | Free L-41 Fighter | -7/Data Miner | Free P-70 Sage | -7/Data Miner | Free I-36 Angel | -7/Data Miner | Free Fabricated ------------ Exp. Sensor Array | x1 | -5/Factory Mni. Smartbomb Launcher | x1 | -5/Factory Alien Tech Used ----------------- Integrated Reactor Phase Armor Subatomic Replicator Core Cannon Sigix Terminator Transdimensional Reconstructor Sigix Broadsword Dimensional Node Initializer Stasis Generator Terrabomb Integrated Dissipator Achievements -------------- None Challenges ------------ None Game ------ Seed TransportArchitectStreamer Manual? 0 Play Time 05:10:20 Cumulative 333.1 hours Start 2022.02.11 @ 15:16:55 End 2022.02.13 @ 14:55:00 Sessions 7 Manual Loads 0 Difficulty Rogue Special Mode None Game No. 181 Rogue 181 Adventurer 0 Explorer 0 Win Type - Total 24 Types 9/7/4/1/0/0/3/0/0 Lore% 93 Gallery% 93 Achievement% 78 Wizard Run 0 Options --------- ASCII 0 Keyboard 0 Movement Numpad Keybinds 0 Fullscreen 2 Font 18/SmallcapsGlow Map View 76x50 Tactical HUD 1 Map Filters NONE Filters NONE Steam 1 RUN: a06a41e3-daaf-41a6-8020-29dc87d13057